Workbook

Sheet Introductie
D8: De jeugdgezondheidszorg (JGZ) heeft een belangrijke poortwachtersrol. JGZ-professionals signaleren risico’s en problemen van de jeugd en bieden of organiseren ondersteuning waar nodig. Als het gaat om de mentale gezondheid van jongeren, wat zou je als professional dan idealiter meten en moeten weten? Hoe wordt de JGZ optimaal gepositioneerd en wat is een goede vorm voor contact? Welke vakmanschap versterkende tools kunnen hierin ondersteunend zijn?
D10: Deze reflectietool ‘Jongeren in de JGZ’ heeft als doel om JGZ-professionals te inspireren en te stimuleren tot reflecteren op de JGZ-uitvoeringspraktijk in de adolescentiefase. De tool maakt wetenschappelijke kennis en inzichten over kwetsbaarheid in de adolescentie, praktisch toepasbaar in de JGZ-praktijk.
D12: Je wordt als JGZ-professional of manager in de tool uitgedaagd tot een systematische reflectie op de gebruikte aanpak binnen de organisatie en het eigen handelen (van jouzelf en/of jouw team):
D14: 1. | E14: Reflectie op aanpak: In hoeverre komen de verschillende aspecten die relevant zijn met betrekking tot ongelijkheid en kwetsbaarheid van jongeren, voldoende aan bod in de aanpak voor jongeren die in jouw JGZ-organisatie gebruikt wordt?
D16: 2. | E16: Reflectie op zelf/team: In hoeverre worden deze verschillende aspecten in de praktijk uitgevoerd door jouzelf en/of jouw team?
D18: Een dergelijke systematische reflectie op de eigen werkwijze(n) maakt inzichtelijk waar in de uitvoeringspraktijk tijdens de adolescentie verbetering of doorontwikkeling mogelijk is.
D20: De tool is ontwikkeld als onderdeel van het Health Equality Youth (HEY)-project (2018-2021). Het HEY project is een deelstudie van het startimpulsproject ‘Gelijke kansen voor een diverse jeugd’ dat uitgevoerd werd als onderdeel van de route ‘Jeugd in ontwikkeling, opvoeding en onderwijs’ van de Nationale Wetenschapsagenda.
D22: Lees voor meer informatie over de totstandkoming van de tool, het inspiratiedocument van het HEY project. De Wolff, M., Klein Velderman, M., Theunissen, M., & Vanneste, Y. (2021). Gelijke kansen in jeugdgezondheid: Hoe kunnen we opeenstapeling van ongezond gedrag en mentale gezondheidsproblemen van jongeren voorkomen? Inspiratiedocument. Utrecht: NCJ.
D26: Toelichting
D28: De reflectietool bestaat uit 42 vragen over factoren die in onderzoek relevant gebleken zijn voor het welbevinden en mentale gezondheid van jongeren. Deze vragen zijn onderverdeeld in de volgende 4 categorieën:
D29: • | E29: Wat moet je weten/meten als professional (21 factoren)
D30: • | E30: Jongere, vorm en proces (12 factoren)
D31: • | E31: Vakmanschap versterkende tools (3 factoren)
D32: • | E32: Positionering JGZ (6 factoren)
D34: De categorie ‘Wat moet je weten/meten als professional’ bevat 21 inhoudelijke factoren waarvan in het onderzoek bleek dat ze belangrijk waren om in het contact met adolescenten aandacht aan te besteden. Het gaat over factoren met betrekking tot 5 thema’s:
D35: - | E35: onveilige omgeving (bv. onveilig voelen op school, stress, of ingrijpende gebeurtenissen)
D36: - | E36: leefstijl (bv. gewicht, middelengebruik)
D37: - | E37: internaliserende en externaliserende problematiek
D38: - | E38: schooluitval
D39: - | E39: sociale omgeving (bv. vrienden)
D41: De categorie ‘Jongere, vorm en proces’ bevat 12 factoren die gaan over hoe het contact met de jongeren is. Deze categorie gaat over 3 thema’s:
D42: - | E42: de vorm van het contact (bv. de tijd die beschikbaar is voor contact)
D43: - | E43: de houding van de professional (bv. open, vriendelijk)
D44: - | E44: regie van de jongeren (bv. aansluiten bij wensen)
D46: De categorie ‘Vakmanschap versterkende tools’ bevat 3 factoren over het thema:
D48: - | E48: vakmanschap versterkende tools (bv. beschikbaarheid van tools voor het bespreken van lastige gezondheidsthema’s en gespreksvoering)
D50: De categorie ‘Positionering JGZ’ omvat 6 factoren die gaan over het thema:
D52: - | E52: positionering van de JGZ (bv. informatieverstrekking over de rol van de JGZ, rechten en plichten, en contact met school)

Sheet AANPAK
G6: SCHAAL 1-5
G7: score 1 | H7: Dit aspect is geen onderdeel van de werkwijze. Het aspect komt in het geheel niet aan bod in de beschrijving van de aanpak.
G8: score 2 | H8: Dit aspect kan onderdeel zijn van de werkwijze, maar nergens wordt expliciet beschreven hoe dit thema of aspect aan bod kan komen.
G9: score 3 | H9: Dit aspect kan onderdeel zijn van de werkwijze. Er wordt globaal beschreven hoe dit thema of aspect aan bod komt.
G10: score 4 | H10: Dit aspect is onderdeel van de werkwijze. Er wordt globaal beschreven hoe dit thema of aspect aan bod komt.
G11: score 5 | H11: Dit aspect is duidelijk onderdeel van de werkwijze en er wordt concreet beschreven hoe dit aspect nagevraagd moet worden.
C13: ONVEILIGE OMGEVING | J13: SCORE 1-5
C14: ='Reflectie methodiek 2206'!B3 -> In hoeverre wordt in deze aanpak gevraagd…
C15: 1 | D15: =VLOOKUP(C15,'Reflectie methodiek 2206'!A:B,2,0) -> naar ingrijpende gebeurtenissen voor een jongere, zoals ernstige ziekte, verlies van dierbaren, of (echt)scheiding? | J15: 1
C16: 2 | D16: =VLOOKUP(C16,'Reflectie methodiek 2206'!A:B,2,0) -> naar de mate van stress die de jongere ervaart? | J16: 1
C17: 3 | D17: =VLOOKUP(C17,'Reflectie methodiek 2206'!A:B,2,0) -> of de jongere zich onveilig voelt bij vrienden/leeftijdsgenoten, bijvoorbeeld door buitensluiten en/of pesten? | J17: 1
C18: 4 | D18: =VLOOKUP(C18,'Reflectie methodiek 2206'!A:B,2,0) -> of de jongere zich onveilig voelt op school door buitensluiten en/of pesten? | J18: 1
C19: 5 | D19: =VLOOKUP(C19,'Reflectie methodiek 2206'!A:B,2,0) -> of de jongere zich onveilig voelt in de thuissituatie/gezin ? (denk aan mishandeling, verwaarlozing, of geweld tussen ouders) | J19: 1
C20: TOTAALSCORE | J20: =IFERROR(AVERAGE(J15:J19),0) -> 1
C22: LEEFSTIJL
C23: ='Reflectie methodiek 2206'!B11 -> In hoeverre wordt in deze aanpak…
C24: 6 | D24: =VLOOKUP(C24,'Reflectie methodiek 2206'!A:B,2,0) -> het gewicht van de jongere gemeten/uitgevraagd? | J24: 1
C25: 7 | D25: =VLOOKUP(C25,'Reflectie methodiek 2206'!A:B,2,0) -> het gewicht met de jongere besproken? | J25: 1
C26: 8 | D26: =VLOOKUP(C26,'Reflectie methodiek 2206'!A:B,2,0) -> nagevraagd of de jongere regelmatig ontbijt? | J26: 1
C27: 9 | D27: =VLOOKUP(C27,'Reflectie methodiek 2206'!A:B,2,0) -> nagevraagd of de jongere lichaamsbeweging heeft en in welke mate? | J27: 1
C28: 10 | D28: =VLOOKUP(C28,'Reflectie methodiek 2206'!A:B,2,0) -> navraag gedaan naar alcoholgebruik? | J28: 1
C29: 11 | D29: =VLOOKUP(C29,'Reflectie methodiek 2206'!A:B,2,0) -> navraag gedaan naar drugsgebruik? | J29: 1
C30: 12 | D30: =VLOOKUP(C30,'Reflectie methodiek 2206'!A:B,2,0) -> navraag gedaan naar gameverslaving? | J30: 1
C31: TOTAALSCORE | J31: =IFERROR(AVERAGE(J24:J30),0) -> 1
C33: INTERNALISEREN - EXTERNALISEREN
C34: ='Reflectie methodiek 2206'!B21 -> In hoeverre wordt in deze aanpak…
C35: 13 | D35: =VLOOKUP(C35,'Reflectie methodiek 2206'!A:B,2,0) -> gevraagd naar weerbaarheid van de jongere (zelfvertrouwen, autonomie en veerkracht)? | J35: 1
C36: 14 | D36: =VLOOKUP(C36,'Reflectie methodiek 2206'!A:B,2,0) -> gevraagd naar externaliserende problematiek van de jongere, zoals agressief gedrag, norm-overschrijdend gedrag, of het vernielen van spullen? | J36: 1
C37: 15 | D37: =VLOOKUP(C37,'Reflectie methodiek 2206'!A:B,2,0) -> gevraagd naar internaliserende problematiek van de jongere, zoals somberheid, piekeren, depressie en angst? | J37: 1
C38: 16 | D38: =VLOOKUP(C38,'Reflectie methodiek 2206'!A:B,2,0) -> aandacht besteed aan psychosomatische klachten van de jongere? | J38: 1
C39: TOTAALSCORE | J39: =IFERROR(AVERAGE(J35:J38),0) -> 1
C41: SCHOOLUITVAL
C42: ='Reflectie methodiek 2206'!B28 -> In hoeverre wordt in deze aanpak bij schooluitval…
C43: 17 | D43: =VLOOKUP(C43,'Reflectie methodiek 2206'!A:B,2,0) -> het type verzuim uitgevraagd (spijbelen of ziekte) bij de jongere? | J43: 1
C44: 18 | D44: =VLOOKUP(C44,'Reflectie methodiek 2206'!A:B,2,0) -> gelet op aan schooluitval gerelateerde internaliserende problematiek van de jongere? | J44: 1
C45: 19 | D45: =VLOOKUP(C45,'Reflectie methodiek 2206'!A:B,2,0) -> gelet op aan schooluitval gerelateerde externaliserende problematiek van de jongere? | J45: 1
C46: TOTAALSCORE | J46: =IFERROR(AVERAGE(J43:J45),0) -> 1
C48: SOCIALE OMGEVING
C49: ='Reflectie methodiek 2206'!B34 -> In hoeverre wordt in deze aanpak…
C50: 20 | D50: =VLOOKUP(C50,'Reflectie methodiek 2206'!A:B,2,0) -> gevraagd naar vriendschappen van de jongere, of wordt sociale steun van leeftijdgenoten in kaart gebracht? | J50: 1
C51: 21 | D51: =VLOOKUP(C51,'Reflectie methodiek 2206'!A:B,2,0) -> gevraagd naar steun van volwassenen voor de jongere, bijv. van ouders, mentor, familie en buren? | J51: 1
C52: TOTAALSCORE | J52: =IFERROR(AVERAGE(J50:J51),0) -> 1
C54: TOTAAL CATEGORIE WAT TE WETEN / METEN? | J54: =IFERROR(AVERAGEIF($C$13:$C$53,"TOTAALSCORE",$J$13:$J$53),0) -> 1
C56: VORM CONTACT
C57: ='Reflectie methodiek 2206'!B40 -> In hoeverre biedt de aanpak…
C58: 22 | D58: =VLOOKUP(C58,'Reflectie methodiek 2206'!A:B,2,0) -> voldoende tijd voor een gesprek op indicatie met de jongere? | J58: 1
C59: 23 | D59: =VLOOKUP(C59,'Reflectie methodiek 2206'!A:B,2,0) -> face-to-face contacten voor de jongere, indien gewenst? | J59: 1
C60: 24 | D60: =VLOOKUP(C60,'Reflectie methodiek 2206'!A:B,2,0) -> de mogelijkheid voor de jongere om zelf de vorm van het contact met de JGZ te bepalen? | J60: 1
C61: 25 | D61: =VLOOKUP(C61,'Reflectie methodiek 2206'!A:B,2,0) -> de mogelijkheid voor de jongere om de vragenlijst (indien van toepassing) in te vullen op een afgeschermde plaats, zonder bemoeienis van anderen?
C62: TOTAALSCORE | J62: =IFERROR(AVERAGE(J58:J61),0) -> 1
C64: HOUDING PROFESSIONAL
C65: ='Reflectie methodiek 2206'!B47 -> In hoeverre wordt in de aanpak beschreven…
C66: 26 | D66: =VLOOKUP(C66,'Reflectie methodiek 2206'!A:B,2,0) -> hoe je een open houding/ luisterend oor aan de dag legt waarmee je als professional een veilig klimaat creëert voor de jongere? | J66: 1
C67: 27 | D67: =VLOOKUP(C67,'Reflectie methodiek 2206'!A:B,2,0) -> dat je als JGZ-professional deskundig en betrouwbaar moet zijn naar een jongere? | J67: 1
C68: 28 | D68: =VLOOKUP(C68,'Reflectie methodiek 2206'!A:B,2,0) -> hoe je een authentieke houding aanneemt als JGZ-professional (d.w.z. relatie aangaan en echt contact maken)? | J68: 1
C69: 29 | D69: =VLOOKUP(C69,'Reflectie methodiek 2206'!A:B,2,0) -> dat je ‘niet onnodig moet gaan problematiseren’ als de jongere een probleem (dat anderen zien) niet erkent? | J69: 1
C70: TOTAALSCORE | J70: =IFERROR(AVERAGE(J66:J69),0) -> 1
C72: REGIE JONGERE
C73: ='Reflectie methodiek 2206'!B54 -> In hoeverre…
C74: 30 | D74: =VLOOKUP(C74,'Reflectie methodiek 2206'!A:B,2,0) -> wordt geëvalueerd of de professional aansluit bij de wensen/behoeften van de jongere? | J74: 1
C75: 31 | D75: =VLOOKUP(C75,'Reflectie methodiek 2206'!A:B,2,0) -> wordt nagevraagd aan de jongere of hij/zij zich gehoord voelt bij het gesprek (feedback)? | J75: 1
C76: 32 | D76: biedt de aanpak de mogelijkheid voor een jongere om tijdens het contact zelf vragen te stellen/onderwerpen aan te dragen? | J76: 1
C77: 33 | D77: =VLOOKUP(C77,'Reflectie methodiek 2206'!A:B,2,0) -> worden jongeren in deze aanpak behandeld als een volwaardige gesprekspartner? | J77: 1
C78: TOTAALSCORE | J78: =IFERROR(AVERAGE(J74:J77),0) -> 1
C80: TOTAAL CATEGORIE JONGERE, VORM EN PROCES | J80: =IFERROR(AVERAGEIF($C$56:$C$79,"TOTAALSCORE",$J$56:$J$79),0) -> 1
C82: VAKMANSCHAP VERSTERKENDE TOOLS
C83: ='Reflectie methodiek 2206'!B62 -> In hoeverre …
C84: 34 | D84: =VLOOKUP(C84,'Reflectie methodiek 2206'!A:B,2,0) -> bevat de aanpak tools voor het bespreken van lastige gezondheidsthema's met jongeren, zoals stress, vermoedens van mishandeling/huiselijk geweld, SOLK- achtige klachten? | J84: 1
C85: 35 | D85: =VLOOKUP(C85,'Reflectie methodiek 2206'!A:B,2,0) -> bevat de aanpak praktische tools voor het praten met jongeren, zonder daarbij een oordeel te vellen? | J85: 1
C86: 36 | D86: =VLOOKUP(C86,'Reflectie methodiek 2206'!A:B,2,0) -> geeft de methode richting aan de handelingsmogelijkheden van de JGZ-professional? | J86: 1
C87: TOTAALSCORE | J87: =IFERROR(AVERAGE(J84:J86),0) -> 1
C89: TOTAAL CATEGORIE VAKMANSCHAP VERSTERKENDE TOOLS | J89: =IFERROR(AVERAGEIF($C$82:$C$88,"TOTAALSCORE",$J$82:$J$88),0) -> 1
C91: POSITIONERING JGZ
C92: In hoeverre wordt in deze aanpak …
C93: 37 | D93: =VLOOKUP(C93,'Reflectie methodiek 2206'!A:B,2,0) -> informatie verstrekt aan jongeren over de rol van de JGZ? | J93: 1
C94: 38 | D94: =VLOOKUP(C94,'Reflectie methodiek 2206'!A:B,2,0) -> informatie verstrekt aan jongeren over het doel van het contact(moment) met de jongere/ouder(s)? | J94: 1
C95: 39 | D95: =VLOOKUP(C95,'Reflectie methodiek 2206'!A:B,2,0) -> ruimte gegeven aan jongeren om voorafgaand aan contact zelf vragen of onderwerpen aan te dragen? | J95: 1
C96: 40 | D96: =VLOOKUP(C96,'Reflectie methodiek 2206'!A:B,2,0) -> beschreven dat de JGZ-professional jongeren informeert over de rechten en plichten rond geheimhouding en privacy? | J96: 1
C97: 41 | D97: =VLOOKUP(C97,'Reflectie methodiek 2206'!A:B,2,0) -> beschreven dat er standaard overlegmomenten tussen school en JGZ moeten zijn? Of is er een overlegstructuur tussen school en JGZ? | J97: 1
C98: 42 | D98: =VLOOKUP(C98,'Reflectie methodiek 2206'!A:B,2,0) -> informatie verstrekt aan ouders over de rol van de JGZ? | J98: 1
C99: TOTAALSCORE | J99: =IFERROR(AVERAGE(J93:J98),0) -> 1
C101: TOTAAL CATEGORIE POSITIONERING JGZ | J101: =IFERROR(AVERAGEIF($C$91:$C$100,"TOTAALSCORE",$J$91:$J$100),0) -> 1

Sheet Reflectie methodiek 2206 (hidden)
A1: Reflectie op aanpak
A3: Onveilige omgeving | B3: In hoeverre wordt in deze aanpak gevraagd… | D3: SCORE 1-5
A4: 1 | B4: naar ingrijpende gebeurtenissen voor een jongere, zoals ernstige ziekte, verlies van dierbaren, of (echt)scheiding? | D4: 2 | F4: niet ok | H4: =VLOOKUP(C15;'Reflectie methodiek 1506'!A:B;2;0)
A5: 2 | B5: naar de mate van stress die de jongere ervaart? | D5: 1 | F5: niet ok
A6: 3 | B6: of de jongere zich onveilig voelt bij vrienden/leeftijdsgenoten, bijvoorbeeld door buitensluiten en/of pesten? | D6: 2 | F6: niet ok
A7: 4 | B7: of de jongere zich onveilig voelt op school door buitensluiten en/of pesten? | D7: 3
A8: 5 | B8: of de jongere zich onveilig voelt in de thuissituatie/gezin ? (denk aan mishandeling, verwaarlozing, of geweld tussen ouders) | D8: 1 | F8: niet ok
B9: Totaalscore | C9: Onveilige Omgeving | D9: =AVERAGE(D4:D8) -> 1.8
A11: Leefstijl I | B11: In hoeverre wordt in deze aanpak…
A12: 6 | B12: het gewicht van de jongere gemeten/uitgevraagd? | D12: 4
A13: 7 | B13: het gewicht met de jongere besproken? | D13: 4
A14: 8 | B14: nagevraagd of de jongere regelmatig ontbijt? | D14: 3
A15: 9 | B15: nagevraagd of de jongere lichaamsbeweging heeft en in welke mate? | D15: 2
A16: 10 | B16: navraag gedaan naar alcoholgebruik? | D16: 5
A17: 11 | B17: navraag gedaan naar drugsgebruik? | D17: 1
A18: 12 | B18: navraag gedaan naar gameverslaving? | D18: 1
B19: Totaalscore | C19: Leefstijl | D19: =AVERAGE(D12:D18) -> 2.857142857
A21: Internaliseren - externaliseren I | B21: In hoeverre wordt in deze aanpak…
A22: 13 | B22: gevraagd naar weerbaarheid van de jongere (zelfvertrouwen, autonomie en veerkracht)? | D22: 3
A23: 14 | B23: gevraagd naar externaliserende problematiek van de jongere, zoals agressief gedrag, norm-overschrijdend gedrag, of het vernielen van spullen? | D23: 3
A24: 15 | B24: gevraagd naar internaliserende problematiek van de jongere, zoals somberheid, piekeren, depressie en angst? | D24: 2
A25: 16 | B25: aandacht besteed aan psychosomatische klachten van de jongere? | D25: 1
B26: Totaalscore | C26: Internaliseren-Externaliseren | D26: =AVERAGE(D22:D25) -> 2.25
A28: Schooluitval I | B28: In hoeverre wordt in deze aanpak bij schooluitval…
A29: 17 | B29: het type verzuim uitgevraagd (spijbelen of ziekte) bij de jongere? | D29: 5
A30: 18 | B30: gelet op aan schooluitval gerelateerde internaliserende problematiek van de jongere? | D30: 2
A31: 19 | B31: gelet op aan schooluitval gerelateerde externaliserende problematiek van de jongere? | D31: 2
B32: Totaalscore | C32: Schooluitval | D32: =AVERAGE(D29:D31) -> 3
A34: Sociale omgeving I | B34: In hoeverre wordt in deze aanpak…
A35: 20 | B35: gevraagd naar vriendschappen van de jongere, of wordt sociale steun van leeftijdgenoten in kaart gebracht? | D35: 2
A36: 21 | B36: gevraagd naar steun van volwassenen voor de jongere, bijv. van ouders, mentor, familie en buren? | D36: 1
B37: Totaalscore | C37: Sociale Omgeving | D37: =AVERAGE(D35:D36) -> 1.5
B38: Totaal categorie WAT TE WETEN/METEN? | D38: =SUM(D4:D8,D12:D18,D22:D25,D29:D31,D35:D36)/21 -> 2.380952381
A40: Vorm contact I | B40: In hoeverre biedt de aanpak…
A41: 22 | B41: voldoende tijd voor een gesprek op indicatie met de jongere? | D41: 1
A42: 23 | B42: face-to-face contacten voor de jongere, indien gewenst? | D42: 2
A43: 24 | B43: de mogelijkheid voor de jongere om zelf de vorm van het contact met de JGZ te bepalen? | D43: 1
A44: 25 | B44: de mogelijkheid voor de jongere om de vragenlijst (indien van toepassing) in te vullen op een afgeschermde plaats, zonder bemoeienis van anderen? | D44: 5
B45: Totaalscore | C45: Vorm Contact | D45: =AVERAGE(D41:D44) -> 2.25
A47: Houding professional I | B47: In hoeverre wordt in de aanpak beschreven…
A48: 26 | B48: hoe je een open houding/ luisterend oor aan de dag legt waarmee je als professional een veilig klimaat creëert voor de jongere? | D48: 2
A49: 27 | B49: dat je als JGZ-professional deskundig en betrouwbaar moet zijn naar een jongere? | D49: 2 | F49: niet ok
A50: 28 | B50: hoe je een authentieke houding aanneemt als JGZ-professional (d.w.z. relatie aangaan en echt contact maken)? | D50: 4 | F50: niet ok
A51: 29 | B51: dat je ‘niet onnodig moet gaan problematiseren’ als de jongere een probleem (dat anderen zien) niet erkent? | D51: 1
B52: Totaalscore | C52: Houding professional | D52: =AVERAGE(D48:D51) -> 2.25
A54: Regie jongeren | B54: In hoeverre…
A55: 30 | B55: wordt geëvalueerd of de professional aansluit bij de wensen/behoeften van de jongere? | D55: 1
A56: 31 | B56: wordt nagevraagd aan de jongere of hij/zij zich gehoord voelt bij het gesprek (feedback)? | D56: 1
A57: 32 | B57: biedt de aanpak de mogelijkheid voor een jongere om tijdens het contact zelf vragen te stellen/onderwerpen aan te dragen? | D57: 3
A58: 33 | B58: worden jongeren in deze aanpak behandeld als een volwaardige gesprekspartner? | D58: 2
B59: Totaalscore | C59: Regie Jongere | D59: =AVERAGE(D55:D58) -> 1.75
B60: Totaal categorie CLIENT, VORM EN PROCES | D60: =SUM(D55:D58,D48:D51,D41:D44)/12 -> 2.083333333
A62: Vakmanschap versterkende Tools | B62: In hoeverre …
A63: 34 | B63: bevat de aanpak tools voor het bespreken van lastige gezondheidsthema's met jongeren, zoals stress, vermoedens van mishandeling/huiselijk geweld, SOLK- achtige klachten? | D63: 1
A64: 35 | B64: bevat de aanpak praktische tools voor het praten met jongeren, zonder daarbij een oordeel te vellen? | D64: 4
A65: 36 | B65: geeft de methode richting aan de handelingsmogelijkheden van de JGZ-professional? | D65: 3 | F65: niet ok
B66: Totaalscore | C66: Vakmanschap versterkende tools | D66: =AVERAGE(D63:D65) -> 2.666666667
B67: Totaal categorie VAKMANSCHAP VERSTERKENDE TOOLS | D67: =D66 -> 2.666666667
A69: Positionering JGZ | B69: In hoeverre wordt in deze aanpak….
A70: 37 | B70: informatie verstrekt aan jongeren over de rol van de JGZ? | D70: 1
A71: 38 | B71: informatie verstrekt aan jongeren over het doel van het contact(moment) met de jongere/ouder(s)? | D71: 1
A72: 39 | B72: ruimte gegeven aan jongeren om voorafgaand aan contact zelf vragen of onderwerpen aan te dragen? | D72: 1 | F72: niet ok
A73: 40 | B73: beschreven dat de JGZ-professional jongeren informeert over de rechten en plichten rond geheimhouding en privacy? | D73: 1 | F73: niet ok
A74: 41 | B74: beschreven dat er standaard overlegmomenten tussen school en JGZ moeten zijn? Of is er een overlegstructuur tussen school en JGZ?
A75: 42 | B75: informatie verstrekt aan ouders over de rol van de JGZ? | D75: 1
B76: Totaalscore | C76: Positionering JGZ | D76: =AVERAGE(D70:D75) -> 1
B77: Totaal categorie POSITIONERING JGZ | D77: =D76 -> 1

Sheet ZELF.TEAM
G6: SCHAAL 1-5
G7: score 1 | H7: Dit aspect is in het geheel niet van toepassing op mij en mijn teamgenoten.
G8: score 2 | H8: Dit aspect is zelden tot nooit van toepassing op mij en mijn teamgenoten.
G9: score 3 | H9: Dit aspect is soms wel, en soms niet van toepassing op mij en mijn teamgenoten.
G10: score 4 | H10: Dit aspect is meestal wel van toepassing op mij en mijn teamgenoten.
G11: score 5 | H11: Dit aspect is altijd van toepassing op mij en mijn teamgenoten.
C13: ONVEILIGE OMGEVING | J13: SCORE 1-5
C14: =INDEX('Reflectie Zelf_Team 1506'!A:B,MATCH(C13,'Reflectie Zelf_Team 1506'!A:A,0),2) -> In hoeverre zijn onderstaande uitspraken op jou/jouw team van toepassing?
C15: 1 | D15: =VLOOKUP(C15,'Reflectie Zelf_Team 1506'!A:B,2,0) -> Ik/mijn team vraag(t) naar ingrijpende gebeurtenissen voor een jongere, zoals ernstige ziekte, verlies van dierbaren, of (echt)scheiding | J15: 2
C16: 2 | D16: =VLOOKUP(C16,'Reflectie Zelf_Team 1506'!A:B,2,0) -> Ik/mijn team vraag(t) naar de mate van stress die de jongere ervaart | J16: 2
C17: 3 | D17: =VLOOKUP(C17,'Reflectie Zelf_Team 1506'!A:B,2,0) -> Ik/mijn team vraag(t) of de jongere zich onveilig voelt bij vrienden/leeftijdsgenoten bijvoorbeeld door buitensluiten en/of pesten | J17: 2
C18: 4 | D18: =VLOOKUP(C18,'Reflectie Zelf_Team 1506'!A:B,2,0) -> Ik/mijn team vraag(t) of de jongere zich onveilig voelt op school door buitensluiten en/of pesten | J18: 2
C19: 5 | D19: =VLOOKUP(C19,'Reflectie Zelf_Team 1506'!A:B,2,0) -> Ik/mijn team vraag(t) of de jongere zich onveilig voelt in de thuissituatie /gezin? (denk aan mishandeling, verwaarlozing, of geweld tussen ouders) | J19: 2
C20: TOTAALSCORE | J20: =IFERROR(AVERAGE(J15:J19),0) -> 2
C22: LEEFSTIJL
C23: =INDEX('Reflectie Zelf_Team 1506'!A:B,MATCH(C22,'Reflectie Zelf_Team 1506'!A:A,0),2) -> In hoeverre zijn onderstaande uitspraken op jou en jouw teamgenoten van toepassing?
C24: 6 | D24: =VLOOKUP(C24,'Reflectie Zelf_Team 1506'!A:B,2,0) -> Ik/mijn team meet het gewicht van de jongere/vraag(t) dit uit | J24: 2
C25: 7 | D25: =VLOOKUP(C25,'Reflectie Zelf_Team 1506'!A:B,2,0) -> Ik/mijn team bespreek(t) het gewicht met de jongere | J25: 2
C26: 8 | D26: =VLOOKUP(C26,'Reflectie Zelf_Team 1506'!A:B,2,0) -> Ik/mijn team vraag(t) aan de jongere of hij/zij regelmatig ontbijt | J26: 2
C27: 9 | D27: =VLOOKUP(C27,'Reflectie Zelf_Team 1506'!A:B,2,0) -> Ik/mijn team vraag(t) aan de jongere of hij/zij lichaamsbeweging heeft en in welke mate | J27: 2
C28: 10 | D28: =VLOOKUP(C28,'Reflectie Zelf_Team 1506'!A:B,2,0) -> Ik/mijn team vraag(t) aan de jongere of hij/zij alcohol gebruikt | J28: 2
C29: 11 | D29: =VLOOKUP(C29,'Reflectie Zelf_Team 1506'!A:B,2,0) -> Ik/mijn team vraag(t) aan de jongere of hij/zij drugs gebruikt | J29: 2
C30: 12 | D30: =VLOOKUP(C30,'Reflectie Zelf_Team 1506'!A:B,2,0) -> Ik/mijn team vraag(t) aan de jongere of hij/zij een gameverslaving heeft, of zeer veel gamet | J30: 2
C31: TOTAALSCORE | J31: =IFERROR(AVERAGE(J24:J30),0) -> 2
C33: INTERNALISEREN - EXTERNALISEREN
C34: =INDEX('Reflectie Zelf_Team 1506'!A:B,MATCH(C33,'Reflectie Zelf_Team 1506'!A:A,0),2) -> In hoeverre zijn onderstaande uitspraken op jou en jouw teamgenoten van toepassing?
C35: 13 | D35: =VLOOKUP(C35,'Reflectie Zelf_Team 1506'!A:B,2,0) -> Ik/mijn team vraag(t) naar de weerbaarheid van de jongere (zelfvertrouwen, autonomie en veerkracht) | J35: 2
C36: 14 | D36: =VLOOKUP(C36,'Reflectie Zelf_Team 1506'!A:B,2,0) -> Ik/mijn team vraag(t) naar externaliserende problematiek van de jongere, zoals agressief gedrag, norm-overschrijdend gedrag, of het vernielen van spullen | J36: 2
C37: 15 | D37: =VLOOKUP(C37,'Reflectie Zelf_Team 1506'!A:B,2,0) -> Ik/mijn team vraag(t) naar internaliserende problematiek van de jongere, zoals somberheid, piekeren, depressie en angst | J37: 2
C38: 16 | D38: =VLOOKUP(C38,'Reflectie Zelf_Team 1506'!A:B,2,0) -> Ik/mijn team vraag(t) of een jongere psychosomatische klachten heeft | J38: 2
C39: TOTAALSCORE | J39: =IFERROR(AVERAGE(J35:J38),0) -> 2
C41: SCHOOLUITVAL
C42: =INDEX('Reflectie Zelf_Team 1506'!A:B,MATCH(C41,'Reflectie Zelf_Team 1506'!A:A,0),2) -> In hoeverre zijn onderstaande uitspraken op jou en jouw teamgenoten van toepassing, als er sprake is van schoolverzuim?
C43: 17 | D43: =VLOOKUP(C43,'Reflectie Zelf_Team 1506'!A:B,2,0) -> Ik/mijn team vraag(t) aan de jongere om welk het type verzuim het gaat (spijbelen of ziekte) | J43: 2
C44: 18 | D44: =VLOOKUP(C44,'Reflectie Zelf_Team 1506'!A:B,2,0) -> Ik/mijn team let op aan schooluitval gerelateerde internaliserende problematiek van de jongere | J44: 2
C45: 19 | D45: =VLOOKUP(C45,'Reflectie Zelf_Team 1506'!A:B,2,0) -> Ik/mijn team let op aan schooluitval gerelateerde externaliserende problematiek van de jongere | J45: 2
C46: TOTAALSCORE | J46: =IFERROR(AVERAGE(J43:J45),0) -> 2
C48: SOCIALE OMGEVING
C49: =INDEX('Reflectie Zelf_Team 1506'!A:B,MATCH(C48,'Reflectie Zelf_Team 1506'!A:A,0),2) -> In hoeverre zijn onderstaande uitspraken op jou en jouw teamgenoten van toepassing?
C50: 20 | D50: =VLOOKUP(C50,'Reflectie Zelf_Team 1506'!A:B,2,0) -> Ik/mijn team breng(t) vriendschappen van de jongere, of de sociale steun van leeftijdgenoten in kaart | J50: 2
C51: 21 | D51: =VLOOKUP(C51,'Reflectie Zelf_Team 1506'!A:B,2,0) -> Ik/mijn team vraag(t) of de jongere steun heeft van volwassenen, bijv. van ouders, mentor, familie en buren | J51: 2
C52: TOTAALSCORE | J52: =IFERROR(AVERAGE(J50:J51),0) -> 2
C54: TOTAAL CATEGORIE WAT TE WETEN / METEN? | J54: =IFERROR(AVERAGEIF($C$13:$C$53,"TOTAALSCORE",$J$13:$J$53),0) -> 2
C56: VORM CONTACT
C57: =INDEX('Reflectie Zelf_Team 1506'!A:B,MATCH(C56,'Reflectie Zelf_Team 1506'!A:A,0),2) -> In hoeverre zijn onderstaande uitspraken op jou en jouw teamgenoten van toepassing?
C58: 22 | D58: =VLOOKUP(C58,'Reflectie Zelf_Team 1506'!A:B,2,0) -> Ik/mijn team zorg(t) dat er voldoende tijd is voor een gesprek op indicatie met de jongere? | J58: 2
C59: 23 | D59: =VLOOKUP(C59,'Reflectie Zelf_Team 1506'!A:B,2,0) -> Ik/mijn team zorg(t) dat er een face-to-face contact kan plaatsvinden met de jongere, indien gewenst? | J59: 2
C60: 24 | D60: =VLOOKUP(C60,'Reflectie Zelf_Team 1506'!A:B,2,0) -> Ik/mijn team zorg(t) dat de jongere zelf de vorm van het contact met de JGZ kan bepalen? | J60: 2
C61: 25 | D61: =VLOOKUP(C61,'Reflectie Zelf_Team 1506'!A:B,2,0) -> Ik/mijn team zorg(t) dat de jongere de vragenlijst (indien van toepassing) op een afgeschermde plaats kan invullen, zonder bemoeienis van anderen?
C62: TOTAALSCORE | J62: =IFERROR(AVERAGE(J58:J61),0) -> 2
C64: HOUDING PROFESSIONAL
C65: =INDEX('Reflectie Zelf_Team 1506'!A:B,MATCH(C64,'Reflectie Zelf_Team 1506'!A:A,0),2) -> In hoeverre zijn onderstaande uitspraken op jou en jouw teamgenoten van toepassing?
C66: 26 | D66: =VLOOKUP(C66,'Reflectie Zelf_Team 1506'!A:B,2,0) -> Ik/mijn team bied(t) een open houding en een luisterend oor om een veilig klimaat te creëren | J66: 2
C67: 27 | D67: =VLOOKUP(C67,'Reflectie Zelf_Team 1506'!A:B,2,0) -> Ik/mijn team stel(t) mij/zich deskundig en betrouwbaar op naar de jongere | J67: 2
C68: 28 | D68: =VLOOKUP(C68,'Reflectie Zelf_Team 1506'!A:B,2,0) -> Ik/mijn team neem(t) een authentieke houding aan ten opzichte van de jongere (d.w.z. Ik/mijn team probeer(t) echt contact te maken en een relatie aan te gaan). | J68: 2
C69: 29 | D69: =VLOOKUP(C69,'Reflectie Zelf_Team 1506'!A:B,2,0) -> Ik/mijn team ga(at) niet onnodig problematiseren als de jongere een probleem (dat anderen zien) niet erkent | J69: 2
C70: TOTAALSCORE | J70: =IFERROR(AVERAGE(J66:J69),0) -> 2
C72: REGIE JONGERE
C73: =INDEX('Reflectie Zelf_Team 1506'!A:B,MATCH(C72,'Reflectie Zelf_Team 1506'!A:A,0),2) -> In hoeverre zijn onderstaande uitspraken op jou en jouw teamgenoten van toepassing?
C74: 30 | D74: =VLOOKUP(C74,'Reflectie Zelf_Team 1506'!A:B,2,0) -> Ik/mijn team evalueer(t) of ik als professional aansluit bij de wensen/behoeften van de jongere | J74: 2
C75: 31 | D75: =VLOOKUP(C75,'Reflectie Zelf_Team 1506'!A:B,2,0) -> Ik/mijn team vraag(t) aan de jongere of hij/zij zich gehoord voelt | J75: 2
C76: 32 | D76: Ik/mijn team bied(t) de jongere de mogelijkheid om tijdens het contact zelf vragen te stellen/onderwerpen aan te dragen | J76: 2
C77: 33 | D77: =VLOOKUP(C77,'Reflectie Zelf_Team 1506'!A:B,2,0) -> Ik/mijn team behandel(t) de jongere als volwaardige gesprekspartner | J77: 2
C78: TOTAALSCORE | J78: =IFERROR(AVERAGE(J74:J77),0) -> 2
C80: TOTAAL CATEGORIE JONGERE, VORM EN PROCES | J80: =IFERROR(AVERAGEIF($C$56:$C$79,"TOTAALSCORE",$J$56:$J$79),0) -> 2
C82: VAKMANSCHAP VERSTERKENDE TOOLS
C83: =INDEX('Reflectie Zelf_Team 1506'!A:B,MATCH(C82,'Reflectie Zelf_Team 1506'!A:A,0),2) -> In hoeverre zijn onderstaande uitspraken op jou en jouw teamgenoten van toepassing?
C84: 34 | D84: =VLOOKUP(C84,'Reflectie Zelf_Team 1506'!A:B,2,0) -> Ik/mijn team beschik(t) over tools voor het bespreken van lastige gezondheidsthema's, zoals stress, vermoedens van mishandeling/huiselijk geweld, SOLK- achtige klachten | J84: 2
C85: 35 | D85: =VLOOKUP(C85,'Reflectie Zelf_Team 1506'!A:B,2,0) -> Ik/mijn team beschik(t) over praktische tools voor het praten met jongeren, zonder daarbij een oordeel te vellen | J85: 2
C86: 36 | D86: =VLOOKUP(C86,'Reflectie Zelf_Team 1506'!A:B,2,0) -> Ik/mijn team weet wat de handelingsmogelijkheden zijn van JGZ-professional(s) | J86: 2
C87: TOTAALSCORE | J87: =IFERROR(AVERAGE(J84:J86),0) -> 2
C89: TOTAAL CATEGORIE VAKMANSCHAP VERSTERKENDE TOOLS | J89: =IFERROR(AVERAGEIF($C$82:$C$88,"TOTAALSCORE",$J$82:$J$88),0) -> 2
C91: POSITIONERING JGZ
C92: =INDEX('Reflectie Zelf_Team 1506'!A:B,MATCH(C91,'Reflectie Zelf_Team 1506'!A:A,0),2) -> In hoeverre zijn onderstaande uitspraken op jou en jouw teamgenoten van toepassing?
C93: 37 | D93: =VLOOKUP(C93,'Reflectie Zelf_Team 1506'!A:B,2,0) -> Ik/mijn team verstrek(t) informatie aan jongeren over de rol van de JGZ | J93: 2
C94: 38 | D94: =VLOOKUP(C94,'Reflectie Zelf_Team 1506'!A:B,2,0) -> Ik/mijn team verstrek(t) aan jongeren informatie over het doel van het contact(moment) met de jongere/ouder(s) | J94: 2
C95: 39 | D95: =VLOOKUP(C95,'Reflectie Zelf_Team 1506'!A:B,2,0) -> Ik/mijn team geef(t) ruimte aan jongeren om voorafgaand aan contact zelf vragen of onderwerpen aan te dragen | J95: 2
C96: 40 | D96: =VLOOKUP(C96,'Reflectie Zelf_Team 1506'!A:B,2,0) -> Ik/mijn team informeer(t) de jongere over de rechten en plichten rond geheimhouding en privacy | J96: 2
C97: 41 | D97: =VLOOKUP(C97,'Reflectie Zelf_Team 1506'!A:B,2,0) -> Ik/mijn team zorg(t) voor standaard overlegmomenten tussen school en JGZ, of ik/mijn team doe(t) mee met de overlegstructuur tussen school en JGZ | J97: 2
C98: 42 | D98: =VLOOKUP(C98,'Reflectie Zelf_Team 1506'!A:B,2,0) -> Ik/mijn team verstrek(t) informatie aan ouders over de rol van de JGZ | J98: 2
C99: TOTAALSCORE | J99: =IFERROR(AVERAGE(J93:J98),0) -> 2
C101: TOTAAL CATEGORIE POSITIONERING JGZ | J101: =IFERROR(AVERAGEIF($C$91:$C$100,"TOTAALSCORE",$J$91:$J$100),0) -> 2

Sheet Reflectie Zelf_Team 1506 (hidden)
A1: Reflectie op zelf/team
A3: ONVEILIGE OMGEVING | B3: In hoeverre zijn onderstaande uitspraken op jou/jouw team van toepassing? | D3: SCORE 1-5
A4: 1 | B4: Ik/mijn team vraag(t) naar ingrijpende gebeurtenissen voor een jongere, zoals ernstige ziekte, verlies van dierbaren, of (echt)scheiding | D4: 1 | F4: niet ok
A5: 2 | B5: Ik/mijn team vraag(t) naar de mate van stress die de jongere ervaart | D5: 3 | F5: niet ok
A6: 3 | B6: Ik/mijn team vraag(t) of de jongere zich onveilig voelt bij vrienden/leeftijdsgenoten bijvoorbeeld door buitensluiten en/of pesten | D6: 5
A7: 4 | B7: Ik/mijn team vraag(t) of de jongere zich onveilig voelt op school door buitensluiten en/of pesten | D7: 2
A8: 5 | B8: Ik/mijn team vraag(t) of de jongere zich onveilig voelt in de thuissituatie /gezin? (denk aan mishandeling, verwaarlozing, of geweld tussen ouders) | D8: 2
B9: Totaalscore | C9: Onveilige Omgeving | D9: =AVERAGE(D4:D8) -> 2.6
A11: LEEFSTIJL | B11: In hoeverre zijn onderstaande uitspraken op jou en jouw teamgenoten van toepassing?
A12: 6 | B12: Ik/mijn team meet het gewicht van de jongere/vraag(t) dit uit | D12: 1
A13: 7 | B13: Ik/mijn team bespreek(t) het gewicht met de jongere | D13: 1
A14: 8 | B14: Ik/mijn team vraag(t) aan de jongere of hij/zij regelmatig ontbijt | D14: 2
A15: 9 | B15: Ik/mijn team vraag(t) aan de jongere of hij/zij lichaamsbeweging heeft en in welke mate | D15: 2
A16: 10 | B16: Ik/mijn team vraag(t) aan de jongere of hij/zij alcohol gebruikt | D16: 1
A17: 11 | B17: Ik/mijn team vraag(t) aan de jongere of hij/zij drugs gebruikt | D17: 1
A18: 12 | B18: Ik/mijn team vraag(t) aan de jongere of hij/zij een gameverslaving heeft, of zeer veel gamet | D18: 3
B19: Totaalscore | C19: Onveilige Omgeving | D19: =AVERAGE(D12:D18) -> 1.571428571
A21: INTERNALISEREN - EXTERNALISEREN | B21: In hoeverre zijn onderstaande uitspraken op jou en jouw teamgenoten van toepassing?
A22: 13 | B22: Ik/mijn team vraag(t) naar de weerbaarheid van de jongere (zelfvertrouwen, autonomie en veerkracht) | D22: 4
A23: 14 | B23: Ik/mijn team vraag(t) naar externaliserende problematiek van de jongere, zoals agressief gedrag, norm-overschrijdend gedrag, of het vernielen van spullen | D23: 4
A24: 15 | B24: Ik/mijn team vraag(t) naar internaliserende problematiek van de jongere, zoals somberheid, piekeren, depressie en angst | D24: 4
A25: 16 | B25: Ik/mijn team vraag(t) of een jongere psychosomatische klachten heeft | D25: 5
B26: Totaalscore | C26: Onveilige Omgeving | D26: =AVERAGE(D22:D25) -> 4.25
A28: SCHOOLUITVAL | B28: In hoeverre zijn onderstaande uitspraken op jou en jouw teamgenoten van toepassing, als er sprake is van schoolverzuim?
A29: 17 | B29: Ik/mijn team vraag(t) aan de jongere om welk het type verzuim het gaat (spijbelen of ziekte) | D29: 4
A30: 18 | B30: Ik/mijn team let op aan schooluitval gerelateerde internaliserende problematiek van de jongere | D30: 2
A31: 19 | B31: Ik/mijn team let op aan schooluitval gerelateerde externaliserende problematiek van de jongere | D31: 2
B32: Totaalscore | C32: Onveilige Omgeving | D32: =AVERAGE(D29:D31) -> 2.666666667
A34: SOCIALE OMGEVING | B34: In hoeverre zijn onderstaande uitspraken op jou en jouw teamgenoten van toepassing?
A35: 20 | B35: Ik/mijn team breng(t) vriendschappen van de jongere, of de sociale steun van leeftijdgenoten in kaart | D35: 2
A36: 21 | B36: Ik/mijn team vraag(t) of de jongere steun heeft van volwassenen, bijv. van ouders, mentor, familie en buren | D36: 3
B37: Totaalscore | C37: Onveilige Omgeving | D37: =AVERAGE(D35:D36) -> 2.5
B38: Totaal categorie WAT TE WETEN/METEN? | D38: =SUM(D4:D8,D12:D18,D22:D25,D29:D31,D35:D36)/21 -> 2.571428571
A40: VORM CONTACT | B40: In hoeverre zijn onderstaande uitspraken op jou en jouw teamgenoten van toepassing?
A41: 22 | B41: Ik/mijn team zorg(t) dat er voldoende tijd is voor een gesprek op indicatie met de jongere? | D41: 4
A42: 23 | B42: Ik/mijn team zorg(t) dat er een face-to-face contact kan plaatsvinden met de jongere, indien gewenst? | D42: 4
A43: 24 | B43: Ik/mijn team zorg(t) dat de jongere zelf de vorm van het contact met de JGZ kan bepalen? | D43: 4
A44: 25 | B44: Ik/mijn team zorg(t) dat de jongere de vragenlijst (indien van toepassing) op een afgeschermde plaats kan invullen, zonder bemoeienis van anderen? | D44: 5
B45: Totaalscore | C45: Onveilige Omgeving | D45: =AVERAGE(D41:D44) -> 4.25
A47: HOUDING PROFESSIONAL | B47: In hoeverre zijn onderstaande uitspraken op jou en jouw teamgenoten van toepassing?
A48: 26 | B48: Ik/mijn team bied(t) een open houding en een luisterend oor om een veilig klimaat te creëren | D48: 5
A49: 27 | B49: Ik/mijn team stel(t) mij/zich deskundig en betrouwbaar op naar de jongere | D49: 5
A50: 28 | B50: Ik/mijn team neem(t) een authentieke houding aan ten opzichte van de jongere (d.w.z. Ik/mijn team probeer(t) echt contact te maken en een relatie aan te gaan). | D50: 5
A51: 29 | B51: Ik/mijn team ga(at) niet onnodig problematiseren als de jongere een probleem (dat anderen zien) niet erkent | D51: 3
B52: Totaalscore | C52: Onveilige Omgeving | D52: =AVERAGE(D48:D51) -> 4.5
A54: REGIE JONGERE | B54: In hoeverre zijn onderstaande uitspraken op jou en jouw teamgenoten van toepassing?
A55: 30 | B55: Ik/mijn team evalueer(t) of ik als professional aansluit bij de wensen/behoeften van de jongere | D55: 3
A56: 31 | B56: Ik/mijn team vraag(t) aan de jongere of hij/zij zich gehoord voelt | D56: 3
A57: 32 | B57: Ik/mijn team bied(t) de jongere de mogelijkheid om tijdens het contact zelf vragen te stellen/onderwerpen aan te dragen | D57: 3
A58: 33 | B58: Ik/mijn team behandel(t) de jongere als volwaardige gesprekspartner | D58: 5
B59: Totaalscore | C59: Onveilige Omgeving | D59: =AVERAGE(D55:D58) -> 3.5
B60: Totaal categorie CLIENT, VORM EN PROCES | D60: =SUM(D55:D58,D48:D51,D41:D44)/12 -> 4.083333333
A62: VAKMANSCHAP VERSTERKENDE TOOLS | B62: In hoeverre zijn onderstaande uitspraken op jou en jouw teamgenoten van toepassing?
A63: 34 | B63: Ik/mijn team beschik(t) over tools voor het bespreken van lastige gezondheidsthema's, zoals stress, vermoedens van mishandeling/huiselijk geweld, SOLK- achtige klachten | D63: 1
A64: 35 | B64: Ik/mijn team beschik(t) over praktische tools voor het praten met jongeren, zonder daarbij een oordeel te vellen | D64: 2
A65: 36 | B65: Ik/mijn team weet wat de handelingsmogelijkheden zijn van JGZ-professional(s) | D65: 2 | F65: niet ok
B66: Totaalscore | C66: Vakmanschap versterkende tools | D66: =AVERAGE(D63:D65) -> 1.666666667
B67: Totaal categorie VAKMANSCHAP VERSTERKENDE TOOLS | D67: =D66 -> 1.666666667
A69: POSITIONERING JGZ | B69: In hoeverre zijn onderstaande uitspraken op jou en jouw teamgenoten van toepassing?
A70: 37 | B70: Ik/mijn team verstrek(t) informatie aan jongeren over de rol van de JGZ | D70: 4
A71: 38 | B71: Ik/mijn team verstrek(t) aan jongeren informatie over het doel van het contact(moment) met de jongere/ouder(s) | D71: 4
A72: 39 | B72: Ik/mijn team geef(t) ruimte aan jongeren om voorafgaand aan contact zelf vragen of onderwerpen aan te dragen | D72: 3
A73: 40 | B73: Ik/mijn team informeer(t) de jongere over de rechten en plichten rond geheimhouding en privacy | D73: 2
A74: 41 | B74: Ik/mijn team zorg(t) voor standaard overlegmomenten tussen school en JGZ, of ik/mijn team doe(t) mee met de overlegstructuur tussen school en JGZ | D74: 2
A75: 42 | B75: Ik/mijn team verstrek(t) informatie aan ouders over de rol van de JGZ | D75: 1
B76: Totaalscore | C76: Positionering JGZ | D76: =AVERAGE(D70:D75) -> 2.666666667
B77: Totaal categorie POSITIONERING JGZ | D77: =D76 -> 2.666666667

Sheet Input Scores (hidden)
N2: PICTOS
C4: =UPPER(tlOnderdeel[[#Headers],[Onderdeel]]) -> ONDERDEEL | G4: AANPAK | H4: ZELF / TEAM
B5: Rij# | C5: iconname | D5: x | E5: y | F5: Onderdeel | G5: Aantal vragen | H5: Aantal witrijen | I5: Rij Totaal Score | J5: AANPAK | K5: ZELF.TEAM | L5: IDScore
B6: 13 | C6: =tlOnderdeel[[#This Row],[Onderdeel]] -> ONVEILIGE OMGEVING | D6: 31 | E6: -28 | F6: =INDIRECT("'" &$J$5 & "'!C" &B6) -> ONVEILIGE OMGEVING | G6: 5 | H6: 2 | I6: =B6+G6+tlOnderdeel[[#This Row],[Aantal witrijen]] -> 20 | J6: =INDIRECT("'" &J$5 & "'!J" &$I6) -> 1 | K6: =INDIRECT("'" &K$5 & "'!J" &$I6) -> 2 | L6: 1
B7: 22 | C7: =tlOnderdeel[[#This Row],[Onderdeel]] -> LEEFSTIJL | D7: 47 | E7: -22 | F7: =INDIRECT("'" &$J$5 & "'!C" &B7) -> LEEFSTIJL | G7: 7 | H7: 2 | I7: =B7+G7+tlOnderdeel[[#This Row],[Aantal witrijen]] -> 31 | J7: 1 | K7: 2 | L7: 2
B8: 33 | C8: =tlOnderdeel[[#This Row],[Onderdeel]] -> INTERNALISEREN - EXTERNALISEREN | D8: 68 | E8: -11 | F8: INTERNALISEREN - EXTERNALISEREN | G8: 4 | H8: 2 | I8: =B8+G8+tlOnderdeel[[#This Row],[Aantal witrijen]] -> 39 | J8: 1 | K8: 2 | L8: 3
B9: 41 | C9: =tlOnderdeel[[#This Row],[Onderdeel]] -> SCHOOLUITVAL | D9: 67 | E9: 9 | F9: SCHOOLUITVAL | G9: 3 | H9: 2 | I9: =B9+G9+tlOnderdeel[[#This Row],[Aantal witrijen]] -> 46 | J9: 1 | K9: 2 | L9: 4
B10: 48 | C10: =tlOnderdeel[[#This Row],[Onderdeel]] -> SOCIALE OMGEVING | D10: 47 | E10: 22 | F10: SOCIALE OMGEVING | G10: 2 | H10: 2 | I10: =B10+G10+tlOnderdeel[[#This Row],[Aantal witrijen]] -> 52 | J10: 1 | K10: 2 | L10: 5
B11: 56 | C11: =tlOnderdeel[[#This Row],[Onderdeel]] -> VORM CONTACT | D11: -36 | E11: 38 | F11: VORM CONTACT | G11: 4 | H11: 2 | I11: =B11+G11+tlOnderdeel[[#This Row],[Aantal witrijen]] -> 62 | J11: 1 | K11: 2 | L11: 6
B12: 64 | C12: =tlOnderdeel[[#This Row],[Onderdeel]] -> HOUDING PROFESSIONAL | D12: -56 | E12: 22 | F12: HOUDING PROFESSIONAL | G12: 4 | H12: 2 | I12: =B12+G12+tlOnderdeel[[#This Row],[Aantal witrijen]] -> 70 | J12: 1 | K12: 2 | L12: 7
B13: 72 | C13: =tlOnderdeel[[#This Row],[Onderdeel]] -> REGIE JONGERE | D13: -65 | E13: 10 | F13: REGIE JONGERE | G13: 4 | H13: 2 | I13: =B13+G13+tlOnderdeel[[#This Row],[Aantal witrijen]] -> 78 | J13: 1 | K13: 2 | L13: 8
B14: 82 | C14: =tlOnderdeel[[#This Row],[Onderdeel]] -> VAKMANSCHAP VERSTERKENDE TOOLS | D14: -81 | E14: -10 | F14: VAKMANSCHAP VERSTERKENDE TOOLS | G14: 3 | H14: 2 | I14: =B14+G14+tlOnderdeel[[#This Row],[Aantal witrijen]] -> 87 | J14: 1 | K14: 2 | L14: 9
B15: 91 | C15: =tlOnderdeel[[#This Row],[Onderdeel]] -> POSITIONERING JGZ | D15: -56 | E15: -22 | F15: POSITIONERING JGZ | G15: 6 | H15: 2 | I15: =B15+G15+tlOnderdeel[[#This Row],[Aantal witrijen]] -> 99 | J15: 1 | K15: 2 | L15: 10
C16: =tblCategorie[[#Headers],[C]] -> C | G16: AANPAK | H16: ZELF / TEAM
B17: Rij# | C17: iconname | D17: x | E17: y | F17: C | G17: Aantal vragen | H17: Aantal witrijen | I17: Rij Totaal Score | J17: Vragenlijst (blauw) | K17: Vragenlijst (roze) | L17: IDScore
B18: 54 | C18: =tblCategorie[[#Headers],[C]]&" " &tblCategorie[[#This Row],[C]] -> C WAT TE WETEN / METEN? | D18: 0 | E18: -30 | F18: =MID(INDIRECT("'" &$J$5 & "'!C" &B18),18,100) -> WAT TE WETEN / METEN? | G18: 0 | H18: 0 | I18: =B18+G18+tblCategorie[[#This Row],[Aantal witrijen]] -> 54 | J18: =INDIRECT("'" &J$5 & "'!J" &$I18) -> 1 | K18: =INDIRECT("'" &K$5 & "'!J" &$I18) -> 2 | L18: 1
B19: 80 | C19: =tblCategorie[[#Headers],[C]]&" " &tblCategorie[[#This Row],[C]] -> C JONGERE, VORM EN PROCES | D19: 62 | E19: -16 | F19: =MID(INDIRECT("'" &$J$5 & "'!C" &B19),18,100) -> JONGERE, VORM EN PROCES | I19: =B19+G19+tblCategorie[[#This Row],[Aantal witrijen]] -> 80 | J19: 1 | K19: 2 | L19: 2 | Q19: C JONGERE, VORM EN PROCES
B20: 89 | C20: =tblCategorie[[#Headers],[C]]&" " &tblCategorie[[#This Row],[C]] -> C VAKMANSCHAP VERSTERKENDE TOOLS | D20: 0 | E20: 33 | F20: =MID(INDIRECT("'" &$J$5 & "'!C" &B20),18,100) -> VAKMANSCHAP VERSTERKENDE TOOLS | I20: =B20+G20+tblCategorie[[#This Row],[Aantal witrijen]] -> 89 | J20: 1 | K20: 2 | L20: 3
B21: 101 | C21: =tblCategorie[[#Headers],[C]]&" " &tblCategorie[[#This Row],[C]] -> C POSITIONERING JGZ | D21: -52 | E21: -14 | F21: POSITIONERING JGZ | I21: =B21+G21+tblCategorie[[#This Row],[Aantal witrijen]] -> 101 | J21: 1 | K21: 2 | L21: 4

Sheet SCORES
K63: INTERPRETATIE VAN DE UITKOMSTEN
K68: WAAR STAAT ONZE AANPAK?
K76: WAAR STAAT EEN PROFESSIONAL / TEAM
K77: TEN OPZICHTE VAN DE AANPAK IN DE ORGANISATIE?

Sheet Informatie
C8: Op deze pagina vind je meer informatie over de categorieën en thema’s uit de reflectietool. We verwijzen je graag naar thema-dossiers, richtlijnen, of informatiedocumenten waar je meer informatie en inspiratie kunt vinden over de thema’s uit de tool:
C10: > WAT MOET JE WETEN/METEN ALS PROFESSIONAL
C12: ONVEILIGE OMGEVING (BV. ONVEILIG VOELEN OP SCHOOL OF INGRIJPENDE GEBEURTENISSEN)
C13: bv. Richtlijnen JGZ:
C14: Kindermishandeling (2016) (ncj.nl)
C15: Pesten (2014) (ncj.nl)
C16: bv. Themadossiers NCJ:
C17: Aanpak Kindermishandeling (ncj.nl)
C18: Aanpak Armoede (ncj.nl)
C19: Early Life Early life stress (ncj.nl)
C20: bv. Richtlijn jeugdhulp en jeugdbescherming:
C21: Scheiding (2020, 4e druk) (richtlijnenjeugdhulp.nl)
C24: LEEFSTIJL (BV. GEWICHT, MIDDELENGEBRUIK)
C25: bv. Richtlijnen JGZ:
C26: Overgewicht (2012) (ncj.nl)
C27: Voeding en eetgedrag (2013, aanpassing 2017) (ncj.nl)
C28: bv. Richtlijn jeugdhulp en jeugdbescherming:
C29: Middelengebruik (2017, 2e druk) (richtlijnenjeugdhulp.nl)
C30: bv. Themadossier:
C31: Gezondheid (ncj.nl)
C32: bv. Informatiedocument:
C33: Factsheet Sociale Media en jongeren (ncj.nl)
C36: INTERNALISERENDE EN EXTERNALISERENDE PROBLEMATIEK
C37: bv. Richtlijnen:
C38: Psychosociale problemen (2016) (ncj.nl)
C39: Angst (2016) (ncj.nl)
C40: Depressie (2016) (ncj.nl)
C41: bv. Richtlijn jeugdhulp en jeugdbescherming:
C42: Ernstige gedragsproblemen (2013, aanpassing 2018) (richtlijnenjeugdhulp.nl)
C45: SCHOOLUITVAL
C46: bv. Themadossier:
C47: Aanpak Schoolverzuim (ncj.nl)
C50: SOCIALE OMGEVING (BV. VRIENDEN)
C51: bv. Richtlijn JGZ:
C52: Ouder-kindrelatie (2021) (ncj.nl)
C53: bv. Themadossier:
C54: Weerbaarheid (ncj.nl)
C57: > JONGERE, VORM EN PROCES
C58: bv. Methodiek:
C59: GIZ-methodiek (ncj.nl)
C60: bv. Informatiedocument:
C61: Factsheet gespreksvoering in de JGZ (tno.nl)
C64: > VAKMANSCHAP VERSTERKENDE TOOLS
C65: bv. Themadossier:
C66: Uitvoeringskader JGZ (ncj.nl)
C67: JGZ Vakmanschapsagenda (ncj.nl)
C68: bv. Diensten:
C69: Professionele ontwikkeling (ncj.nl)
C70: bv. Tools:
C71: Kaartenset voor gespreksvoering (Trimbos.nl) (PM0438)
C74: > POSITIONERING JGZ
C75: bv. Themadossier:
C76: JGZ Preventieagenda (ncj.nl)
C77: bv. Informatiedocument:
C78: Publicatie Ben ik in beeld? (ncj.nl)
C79: bv. Links voor jongeren en ouders:
C80: Jouw GGD.nl | Alles over gezondheid voor jongeren.
C81: Opvoeden.nl voor ouders
C86: Colofon
C87: Reflectietool Jongeren in de JGZ
C89: Auteurs
C90: Marianne de Wolff, Mariska Klein Velderman, Meinou Theunissen en Yvonne Vanneste
C92: Met medewerking van
C93: Projectleden van het HEY project en collega’s uit de JGZ-sector
C95: Ontwerp
C96: Taluut Utrecht in samenwerking met 12do-it.nl
C98: Een publicatie van
C99: Nederlands Centrum Jeugdgezondheid (NCJ) www.ncj.nl en
C100: TNO (www.tno.nl)
C102: Financiering
C103: De totstandkoming van deze tool is gefinancierd binnen het startimpulsproject ‘Gelijke kansen voor een diverse jeugd’, onderdeel van de route ‘Jeugd in ontwikkeling, opvoeding en onderwijs’ van de Nationale Wetenschapsagenda.
C105: Verwijzing naar dit document
C106: De Wolff, M., Klein Velderman, M., Theunissen, M., & Vanneste, Y. (2021). Reflectietool Jongeren in de JGZ. Utrecht: NCJ.
C108: © NCJ - Nederlands Centrum Jeugdgezondheid, Utrecht, juni 2021

Sheet Wijzigingen (hidden)
A1: ID | C1: Tabblad | D1: Wijziging | E1: Wie lost op?
A2: 1 | B2: Susan, versie 01.00 | C2: Spinnenweb | D2: Grafiek thema toevoegen 10 verschillende afbeeldingen (picto & tekst) | E2: Susan
A3: 2 | B3: Susan, versie 01.00 | C3: Spinnenweb | D3: Lijnen dikker roze & blauw | E3: Susan
A4: 3 | B4: Susan, versie 01.00 | C4: Spinnenweb | D4: Verticale lijn, vergelijkbaar met de schaal | E4: Susan
A5: 4 | B5: Susan, versie 01.00 | C5: Spinnenweb | D5: 4 punten grafiek Categorie in plaats van 5 punten | E5: Susan
A6: 5 | B6: Susan, versie 01.00 | C6: Spinnenweb | D6: Grafiek categorie toevoegen 4 verschillende afbeeldingen (picto & tekst) | E6: Susan
A7: 6 | B7: Telefoon dd 03.-06 | C7: Teksten | D7: u wijzigen in je | E7: Susan
A8: 7 | B8: Telefoon dd 03.-06 | C8: Teksten | D8: vragenlijst teksten? | E8: TNO
A9: 8 | B9: Telefoon dd 03.-06 | C9: Icons | D9: sommige icons hebben een blauwe lijn -> vervangen | E9: Remke
A10: 9 | B10: Telefoon dd 03.-06 | C10: Icons | D10: de headers zijn niet even breed als de pagina's waardoor verhouding niet meer klopt met de roze/blauwe/gouden subheaders | E10: Remke
A11: 10 | B11: Telefoon dd 03.-06 | C11: Ribbon | D11: printvoorbeeld pagina toevoegen | E11: Susan
A12: 11 | B12: Telefoon dd 03.-06 | C12: linken naar websites | D12: een hyperlink kan alleen aan een object of een cel worden gekoppeld. Er kunnen geen links in teksten worden geplaatst, zoals in word/mailteksten | E12: remke
A13: 12 | B13: Remke, mail dd. 04-06 | C13: Algemeen | D13: Ik vindt de blokken combinaties boven de vragenlijsten echt veel beter nu, met die gelijke afstanden. Zie wel dat er bij een paar buttons nog de afstanden aangepast moet worden, vooral bij de setjes buttons onderaan de pagina's. Kun je daar dezelfde afstanden maken? | E13: Susan
A14: 13 | B14: Remke, mail dd. 04-06 | C14: Algemeen | D14: -En de bruine blokken zijn nu overal anders, en kleiner dan de vragenlijst blokken | E14: Susan
A15: 14 | B15: Remke, mail dd. 04-06 | C15: Algemeen | D15: En er gebeurt iets geks: - veel lijkt een beetje versmald. Je ziet het het beste bij de spinnenwebben, die hebben een ei-vorm nu. Maar in de pdf is dat niet meer zo. Dat geldt ook voor de teksten in de buttons en blokken. Als ik vergelijk met mijn aangeleverde plaatjes zijn de teksten smaller, in elkaar gedrukt. Kan het dat je bij het plaatsen wat aan de verhouding lengte breedte hebt veranderd? Ik ga het ook nog even op de laptop van Frans checken.. | E15: x
A16: 15 | B16: Remke, mail dd. 04-06 | C16: Introductie | D16: Je hebt nu de hele link laten staan, en de regel over HEY is weg. Die moet blijven en de lange link moet weg. De link doet het wel, dat is fijn. | E16: Susan
A17: 16 | B17: Remke, mail dd. 04-06 | C17: Introductie | D17: -De bruine balk boven is hier nog te smal/klein | E17: Susan
A18: 17 | B18: Remke, mail dd. 04-06 | C18: Introductie | D18: -De roze en blauwe buttons zijn hier ook kleiner dan bij de rest, kan dat hetzelfde? (hier ook groter dus? | E18: Susan
A19: 18 | B19: Remke, mail dd. 04-06 | C19: Vragen aanpak | D19: -De bruine balk boven is hier nog te smal/klein-Tussen vraag 20 en 21 zit teveel wit (ook bij de roze lijst), kan dat weg?
A20: 19 | B20: Remke, mail dd. 04-06 | C20: Vragen aanpak | D20: - Kun je de iconen nog iets strakker links/rechts precies lijnen? Grootte is mooi zo, plek tov tekst ook, alleen nog ietsje strakker plaatsen (als dat aan mijn uitsnede ligt, hoor ik het wel)
A21: 20 | B21: Remke, mail dd. 04-06 | C21: Vragen aanpak | D21: - In het lijstje 1-5: bij score 4 van ook zwart, score 5 bij weg | E21: Susan
A22: 21 | B22: Remke, mail dd. 04-06 | C22: Vragen aanpak | D22: - Bij de vragen: (vraag 34) vakmanschap versterkende tools | E22: Susan
A23: 22 | B23: Remke, mail dd. 04-06 | C23: Vragen zelf team | D23: -Tussen vraag 20 en 21 zit teveel wit (ook bij de blauwe lijst), kan dat weg?
A24: 23 | B24: Remke, mail dd. 04-06 | C24: Vragen zelf team | D24: - In het lijstje 1-5 score 1, na is een spatie eruit, score 3 aspect (s erbij) | E24: Susan
A25: 24 | B25: Remke, mail dd. 04-06 | C25: Spinnenweb | D25: -De bruine balk boven is hier nog te smal/klein | E25: Susan
A26: 25 | B26: Remke, mail dd. 04-06 | C26: Spinnenweb | D26: - Kunnen de figuren iets kleiner? En sowieso meer naar onder zodat er meer wit omheen zit. Ze staan nu zo krap op de buttons. (En de eivorm..) | E26: Susan
A27: 26 | B27: Remke, mail dd. 04-06 | C27: Spinnenweb | D27: - cijfertjes erbij is mooi | E27: x
A28: 27 | B28: Remke, mail dd. 04-06 | C28: Informatie | D28: -De bruine balk boven is hier nog te smal/klein | E28: Susan
A29: 28 | B29: Remke, mail dd. 04-06 | C29: Informatie | D29: - Kunnen de teksten met linkjes dat goudbruin ipv groen? Fijn dat ze werken zo! | E29: Susan
A30: 29 | B30: Remke, mail dd. 04-06 | C30: Informatie | D30: - Kan de hele tekst net zover inspringen als bij de vragen, zodat de iconen hetzelfde geplaatst kunnen worden als bij de vragen? | E30: Susan
A31: 30 | B31: Telefoon dd. 04-06 | C31: Informatie | D31: blokken met link naar boven | E31: Susan
A32: 31 | B32: Telefoon dd. 04-06 | C32: Informatie | D32: inleiding bruin | E32: Susan
A33: 32 | B33: Telefoon dd. 04-06 | C33: Introductie | D33: blok bruin toevoegen | E33: Susan
A34: 33 | B34: Remke | opdrachtgever, mail dd. 15-06 | C34: Vragen aanpak | D34: · Categorie Positionering JGZ: In hoeverre wordt in deze aanpak … (zonder gevraagd) | E34: Susan
A35: 34 | B35: Remke | opdrachtgever, mail dd. 15-06 | C35: Vragen aanpak | D35: · V41: dit item wordt vervangen door: informatie verstrekt aan jongeren over het doel van het contact(moment) met de jongere/ouder(s) - opnemen na V37 (dus als nr. 38) | E35: Susan
A36: 35 | B36: Remke | opdrachtgever, mail dd. 15-06 | C36: Vragen aanpak | D36: · Er ging iets mis met het berekenen van de totaalscore voor categorie Client vorm en proces. We hebben het nu overal nagelopen. Graag overal voor een thema het gemiddelde over de items ervoor en voor een categorie het gemiddelde over de totaalscores op de onderliggende thema's. --SSC-- formules aangepast in de totaalscores over de thema's | E36: Susan
A37: 36 | B37: Remke | opdrachtgever, mail dd. 15-06 | C37: Vragen zelf team | D37: Er gaat iets fout in de berekening van de gemiddelde score bij Totaal categorie wat te weten/meten (bv. alles leeglaten en de eerste vraag van elk thema een 1 en dan krijg ik gemiddeld 0,5) en totaal client vorm en proces (idem). Ook hier hebben we het nu overal nagelopen. Graag overal voor een thema het gemiddelde over de items ervoor en voor een categorie het gemiddelde over de totaalscores op de onderliggende thema's. --SSC-- formules aangepast in de totaalscores over de thema's | E37: Susan
A38: 37 | B38: Remke | opdrachtgever, mail dd. 15-06 | C38: Vragen zelf team | D38: · V26: oor miste in luisterend oor. | E38: Susan
A39: 38 | B39: Remke | opdrachtgever, mail dd. 15-06 | C39: Vragen zelf team | D39: · V40: overlegstructuur aan elkaar | E39: Susan
A40: 39 | B40: Remke | opdrachtgever, mail dd. 15-06 | C40: Vragen zelf team | D40: · V41: dit item vervangen door: ik/mijn team verstrek(t) informatie aan de jongeren over het doel van het contact(moment) met de jongere/ouder(s). (opnemen als item 38) | E40: Susan
A41: 40 | B41: Remke | opdrachtgever, mail dd. 15-06 | C41: Vragen | D41: vraag 32 en (nieuwe nummering) 39 lijken wat op elkaar. Bij vraag 32 tijdens onderstreept en bij 38 ‘voorafgaand aan contact’ toevoegen. | E41: Susan
A42: 41 | B42: Remke | opdrachtgever, mail dd. 15-06 | C42: Vragen | D42: V27: vriendelijk mag weg. | E42: Susan
A43: 42 | B43: Remke | opdrachtgever, mail dd. 15-06 | C43: Vragen | D43: V6: naast meten ook uitvragen van gewicht: item herfomuleren. | E43: Susan
A44: 43 | B44: Remke | opdrachtgever, mail dd. 15-06 | C44: Vragen | D44: V25: kan er een * bij niet van toepassing, met ergens eronder: Dit antwoord leeg laten indien niet van toepassing. --SSC-- in de validatie input tekst * en "Dit antwoord leeg laten indien niet van toepassing."
A45: 44 | B45: Remke | opdrachtgever, mail dd. 15-06 | C45: Spinnenweb | D45: Voor oa de berekening in Excel hebben we het aangepast in de oorspronkelijke excel-file, zie bijgevoegd. Fijn dat andere antwoorden dan 1-5 niet kunnen (6 geeft bijv. error). Het enige cijfer waarvoor dit niet geldt is 0. Fijn als dat uiteindelijk ook geblokkeerd is (anders berekent de tool een gemiddelde incl. die score 0 voor een thema of categorie --SSC-- Datavalidatie: nummer invullen tussen 1 - 5. Berekening: average van aantal x getal ingevuld. Lege cel telt niet mee. | E45: Susan
A46: 45 | B46: Remke | opdrachtgever, mail dd. 22-06 | C46: Vragen zelf team | D46: 1. In reflectie op aanpak vraag 32 zou idealiter ook nog tijdens het contact bevatten, net als bij reflectie op zelf/team. Ik had bij de opmerking algemeen niet meer gecheckt hoe dat stond in reflectie op aanpak, sorry. Dus dan wordt het: 32 biedt de aanpak de mogelijkheid voor een jongere om tijdens het contact zelf vragen te stellen/onderwerpen aan te dragen? | E46: Susan
A47: 46 | B47: Remke | opdrachtgever, mail dd. 22-06 | C47: Informatie | D47: 3. In de informatielinks Bij internaliserende en externaliserende problematiek in het tabblad informatie, staat nu: Jeugdhulp en jeugdbescherming (2013, aanpassing 2018) (richtlijnenjeugdhulp.nl) Dit zou moeten zijn: bv. Richtlijn jeugdhulp en jeugdbescherming: Ernstige gedragsproblemen (2013, aanpassing 2018) (richtlijnenjeugdhulp.nl) | E47: Susan
A48: 47 | B48: Remke | opdrachtgever, mail dd. 22-06 | C48: Informatie | D48: 4. Omschrijving links Ook in het Informatie tabblad: Wat niet echt een foutje is, maar misschien niet heel mooi, zijn de links waar alleen bv.: voor staat. Daar kan ik me voorstellen dat we toch nog een omschrijving toevoegen. Dus onder Client, vorm en proces: bv. Methodiek: GIZ-methodiek (ncj.nl)
A49: 48 | B49: Remke | opdrachtgever, mail dd. 22-06 | C49: Informatie | D49: En bij positionering JGZ: bv. Informatiedocument: Publicatie Ben ik in beeld? (ncj.nl)
A50: 49 | B50: Remke | opdrachtgever, mail dd. 22-06 | C50: Introductie | D50: 5. Ontbrekende verwijzing In de Introductie staat waar de tool vandaan komt: De tool is ontwikkeld als onderdeel van het Health Equality Youth (HEY)-project (2018-2021). Het HEY project is een deelstudie van het startimpulsproject ‘Gelijke kansen voor een diverse jeugd’ dat uitgevoerd werd als onderdeel van de route ‘Jeugd in ontwikkeling, opvoeding en onderwijs’ van de Nationale Wetenschapsagenda. Voor meer informatie over de totstandkoming van de tool. Daar ontbreekt nu de verwijzing naar het Inspiratiedocument. Dat is natuurlijk nog niet af, maar ik denk dat we het hier wel vast moeten invoegen. Bijv. zo: De tool is ontwikkeld als onderdeel van het Health Equality Youth (HEY)-project (2018-2021). Het HEY project is een deelstudie van het startimpulsproject ‘Gelijke kansen voor een diverse jeugd’ dat uitgevoerd werd als onderdeel van de route ‘Jeugd in ontwikkeling, opvoeding en onderwijs’ van de Nationale Wetenschapsagenda. Lees meer informatie over de totstandkoming van de tool, het inspiratiedocument van het HEY project. De Wolff, M., Klein Velderman, M., Theunissen, M., & Vanneste, Y. (2021). Gelijke kansen in jeugdgezondheid. Inspiratiedocument. Utrecht: NCJ.
A51: 50 | B51: Remke | opdrachtgever, mail dd. 22-06 | C51: Informatie | D51: Colofon Reflectietool Jongeren in de JGZ Auteurs Marianne de Wolff, Mariska Klein Velderman, Meinou Theunissen en Yvonne Vanneste Met medewerking van Projectleden van het HEY project en collega’s uit de JGZ-sector Ontwerp Taluut Utrecht Techniek Susan, jij mag zeggen wat je hier wilt… Een publicatie van Nederlands Centrum Jeugdgezondheid (NCJ) www.ncj.nl en TNO (www.tno.nl) Financiering De totstandkoming van deze tool is gefinancierd binnen het startimpulsproject ‘Gelijke kansen voor een diverse jeugd’, onderdeel van de route ‘Jeugd in ontwikkeling, opvoeding en onderwijs’ van de Nationale Wetenschapsagenda. Verwijzing naar dit document De Wolff, M., Klein Velderman, M., Theunissen, M., & Vanneste, Y. (2021). Reflectietool Jongeren in de JGZ. Utrecht: NCJ. © NCJ - Nederlands Centrum Jeugdgezondheid, Utrecht, juni 2021
A52: 51
A53: 52
A54: 53
A55: 54
A56: 55
A57: 56
A58: 57
A59: 58
A60: 59
